Cogmind - Beta 15 *** ADVENTURER MODE // 2025.07.24 @ 11:31:06 Player: Jefffff Result: Destroyed by H-77 Assassin with Coil Gun Performance ------------- Evolutions (7) 3500 Regions Visited (8) 1600 Robots Destroyed (79) 395 Value Destroyed (3274) 3274 Prototype IDs (7) 140 Alien Tech Used (0) 0 Bonus (724) 724 TOTAL SCORE: 9633 Bonus ------- Follower Combat Kills 424 Registered with UFD 300 Cogmind --------- Core Integrity 0/1300 Matter 174/300 Energy 8/100 System Corruption 16% Temperature Cool (0) Movement Core (50) Location -3/Research Parts ------- > --- POWER (3) -------- (None) > --- PROPULSION (6) --- (None) > --- UTILITY (9) ------ (None) > --- WEAPON (3) ------- (None) > --- INVENTORY (5) ---- Light Antimatter Reactor Improved Reaction Control System Advanced Datajack Advanced Remote Datajack DRS Beacon (Ready) Peak State ------------ > --- POWER ------------ Particle Reactor Micro Antimatter Reactor Compact Particle Reactor > --- PROPULSION ------- Centrium Wheel Centrium Wheel Centrium Wheel Centrium Wheel Centrium Wheel Centrium Wheel > --- UTILITY ---------- Power Amplifier Advanced Heat Sink Huge Storage Unit Improved Salvage Targeting Computer Improved Transmission Jammer Improved Light Armor Plating Graphene Brace Improved Hacking Suite Advanced Recalibrator > --- WEAPON ----------- Quantum Rifle Long-range Proton Cannon Phasing Sabre > --- INVENTORY -------- Reinforced Fission Core Light Antimatter Reactor Myomer Leg Myomer Leg Myomer Leg Myomer Leg Myomer Leg Centrium Wheel Improved Antigrav System Improved Antigrav System Improved Antigrav System Improved Antigrav System Advanced Heat Sink Advanced Sensor Array Advanced Signal Interpreter Advanced Target Analyzer Advanced Target Analyzer Improved Reaction Control System Improved Light Armor Plating Improved Light Armor Plating Gamma Rifle Advanced Datajack Advanced Remote Datajack DRS Beacon [Rating: 146] Favorites ----------- Power Ion Engine Engine Ion Engine Power Core Reinforced Fission Core Reactor Compact Particle Reactor Propulsion Improved Treads Treads Improved Treads Leg Carbon-fiber Leg Wheel Centrium Wheel Hover Unit Gyrokinetic Inverter Flight Unit Nuclear Pulse Thruster Utility Small Storage Unit Device Power Amplifier Storage Small Storage Unit Processor Improved Salvage Targeting Computer Hackware Improved Hacking Suite Protection Heavy Reflective Plating Weapon Beam Cannon Energy Gun Pulse Rifle Energy Cannon Beam Cannon Ballistic Gun Minigun Ballistic Cannon Improved Light Cannon Launcher Improved Grenade Launcher Impact Weapon Great Maul Slashing Weapon Phasing Sabre Special Melee Weapon Advanced Datajack Build | -11 -10 -10 -8 -6 -5 -4 -4 -3 ------- Run | Yrd Mat Sub Scr Fac Fac Fac Ext Res Slots Evolved 14 | . . . . 8 2 2 . 2 Power 2 | . . . . 1 . . . 1 Propulsion 4 | . . . . 2 1 . . 1 Utility 7 | . . . . 4 1 2 . . Weapon 1 | . . . . 1 . . . . Parts Attached 172 | 6 10 3 11 42 30 5 25 40 Power 22 | 1 1 1 3 6 3 1 3 3 Engine 9 | 1 . 1 3 3 1 . . . Core 8 | . 1 . . 3 2 . 2 . Reactor 5 | . . . . . . 1 1 3 Propulsion 57 | 2 3 2 3 13 10 . 8 16 Treads 10 | . . 1 1 3 . . 5 . Leg 20 | 1 2 1 2 9 . . 1 4 Wheel 13 | 1 1 . . 1 2 . 1 7 Hover 8 | . . . . . 3 . 1 4 Flight 6 | . . . . . 5 . . 1 Utility 54 | 1 1 . 3 12 12 3 6 16 Device 31 | . 1 . 1 9 9 . 4 7 Storage 5 | 1 . . 2 . 1 . . 1 Processor 11 | . . . . 1 2 3 . 5 Hackware 3 | . . . . 2 . . 1 . Protection 4 | . . . . . . . 1 3 Artifact . | . . . . . . . . . Weapon 39 | 2 5 . 2 11 5 1 8 5 Energy Gun 13 | 1 1 . 1 4 3 . . 3 Energy Cannon 2 | . 1 . . . . . . 1 Ballistic Gun 10 | 1 . . 1 5 . . 2 1 Ballistic Cannon 5 | . 3 . . . 1 . 1 . Launcher 1 | . . . . . 1 . . . Special Weapon . | . . . . . . . . . Impact Weapon 2 | . . . . 2 . . . . Slashing Weapon 5 | . . . . . . . 5 . Piercing Weapon . | . . . . . . . . . Special Melee Weapon 1 | . . . . . . 1 . . Unidentified Prototypes 3 | . . . . . 2 . 1 . Corrupted Parts 2 | . . . . . 1 . 1 . System Corruption 3 | . . . . . 2 . 1 . Parts Lost 92 | . . 3 . 31 6 . 9 43 Power 16 | . . 1 . 6 2 . 1 6 Propulsion 34 | . . 2 . 11 1 . 4 16 Utility 26 | . . . . 9 1 . 2 14 Weapon 16 | . . . . 5 2 . 2 7 Highest Loss Streak 25 | . . 2 . 21 4 . 8 25 To Critical Strikes 1 | . . . . 1 . . . . Average Backups 8 | 1 7 6 8 11 5 4 3 11 Power 1 | . 1 . . 5 1 1 1 1 Propulsion 1 | . 2 . 1 2 . . . 4 Utility 2 | . 1 2 2 2 1 2 . 3 Weapon 2 | . 2 3 3 1 1 1 1 1 Tool/Special . | . . . . . . . . . Unused Backups 37 | . 1 . 13 . 8 1 5 9 Power 7 | . . . 1 . . 1 1 4 Propulsion 4 | . . . 2 . . . . 2 Utility 11 | . . . 6 . 2 . 2 1 Weapon 13 | . 1 . 4 . 6 . 2 . Tool/Special 2 | . . . . . . . . 2 Average Slot Usage (%) 92 | . 96 99 99 92 60 95 92 87 Engine 7 | . 3 10 14 6 7 . . . Core 3 | . 10 3 . 4 1 9 7 2 Reactor 1 | . . . . . . . 2 8 Treads 9 | . . 10 15 6 4 . 7 6 Leg 9 | . 14 15 12 16 . . . 5 Wheel 3 | . 14 1 . . 1 . 2 12 Flight 1 | . . . . . . 26 12 . Device 16 | . 10 14 14 13 16 27 28 22 Storage 9 | . 14 14 14 6 4 . . 2 Processor 2 | . . . . 4 1 15 7 4 Hackware 2 | . . . . 12 . . 4 3 Energy Gun 3 | . 9 . 2 8 1 10 1 2 Energy Cannon 5 | . 4 14 11 . . . . . Ballistic Gun 7 | . 6 . 12 5 4 . 4 5 Ballistic Cannon 2 | . 7 14 1 . . . . . Peak Build Rating 146 | 6 13 13 25 64 82 102 112 146 Average Rating 45 | 4 11 11 17 51 43 94 104 124 On Entrance 39 | . 6 13 12 25 14 82 98 109 Naked Turns 2 | . . . . . . . . 2 Heaviest Build 145 | 12 18 18 37 55 118 31 73 145 Greatest Support 139 | 16 16 23 53 74 30 30 139 116 Greatest Overweight (x) 11 | 1 1 1 1 10 11 1 4 4 Average Overweight (x) . | . . . . . 2 . . . Largest Inventory Capacity 25 | 8 8 8 15 15 25 5 5 25 Average Capacity 11 | 7 8 8 10 15 16 5 5 16 Most Carried 25 | 5 8 8 15 15 14 5 5 25 Average Carried 8 | 2 7 6 9 13 7 4 4 12 Final Capacity 15 | 8 8 8 15 15 5 5 5 5 Final Carried 15 | 3 8 6 15 7 5 5 5 5 Class Distribution -------------------- 62% | Mutant 17% | Scavenger-Mutant 6% | Hacker-Mutant Dominant Class ---------------- Mutant | -10/Materials Mutant | -10/Subcaves Mutant | -8/Scraptown Hacker-Mutant | -6/Factory Mutant | -5/Factory Sprinter | -4/Factory Scavenger-Mutant | -4/Extension Scavenger-Mutant | -3/Research Resources | -11 -10 -10 -8 -6 -5 -4 -4 -3 ----------- Run | Yrd Mat Sub Scr Fac Fac Fac Ext Res Matter Collected 3143 | 227 293 131 112 660 379 17 708 616 Remotely 182 | . . . . 182 . . . . Salvage Created 4082 | . 512 222 . 1451 314 17 656 910 Parts 206 | . 34 16 . 63 9 1 31 52 Haulers Intercepted 5 | . 1 . . 1 . . 2 1 Recyclers Shooed 5 | . 2 . . 2 . . . 1 Parts Field Recycled . | . . . . . . . . . Retrieved Matter . | . . . . . . . . . Parts Self-Destructed 5 | . . 5 . . . . . . Prevented . | . . . . . . . . . Kills | -11 -10 -10 -8 -6 -5 -4 -4 -3 ------- Run | Yrd Mat Sub Scr Fac Fac Fac Ext Res Combat Hostiles Destroyed 54 | . 9 7 . 19 4 . 7 8 Melee 2 | . . . . . 2 . . . Guns 42 | . 9 . . 18 2 . 6 7 Cannons 6 | . . 6 . . . . . . AOE 1 | . . . . 1 . . . . Classes Destroyed 18 | . 7 1 . 8 1 . . 1 Worker 3 | . 2 . . 1 . . . . Builder 1 | . . . . . 1 . . . Tunneler 2 | . 1 . . . . . . 1 Hauler 5 | . 1 . . 1 . . 2 1 Recycler 4 | . 1 . . 2 1 . . . Mechanic 1 | . . . . . . . . 1 Operator 4 | . . . . 1 . 1 1 1 Watcher 5 | . 2 . . 1 . . 1 1 Swarmer 10 | . 3 . . 3 . . 4 . Grunt 13 | . 6 . . 5 . . 2 . Brawler 1 | . . . . 1 . . . . Protector 1 | . . . . 1 . . . . Sentry 5 | . . . . 3 . . 1 1 Specialist 2 | . . . . 2 . . . . Hunter 6 | . . . . 2 . . . 4 Programmer 8 | . . . . 1 4 . . 3 Heavy 1 | . . . . 1 . . . . Subdweller 7 | . . 7 . . . . . . Best Kill Streak 6 | . 5 2 . 6 4 1 4 5 Combat Bots Only 6 | . 4 2 . 6 2 . 4 3 Max Kills in Single Turn 2 | . 1 1 . 2 1 1 2 1 Gunslinging 1 | . . . . 1 . . 1 . Exploded 1 | . . . . 1 . . . . Melee 1 | . . . . . 1 . . . Uniques/NPCs Destroyed . | . . . . . . . . . Combat | -11 -10 -10 -8 -6 -5 -4 -4 -3 -------- Run | Yrd Mat Sub Scr Fac Fac Fac Ext Res Hostile Shots Fired 1430 | . 36 40 . 393 68 1 79 813 Missed 454 | . 5 9 . 114 17 1 31 277 Hits 976 | . 31 31 . 279 51 . 48 536 Melee 5 | . . . . 5 . . . . Projectile 971 | . 31 31 . 274 51 . 48 536 AOE 2 | . . . . . 1 . . 1 Critical Strikes 24 | . . . . 6 2 . . 16 Actively Blocked 15 | . . . . . . . . 15 Part Disruptions 1 | . . . . 1 . . . . Damage Taken 13660 | . 260 570 . 4120 846 . 845 7019 Core 2797 | . 68 176 . 816 221 . 211 1305 Absorbed by Shields 125 | . . . . 38 . . 87 . Reduced by Siege Mode 8 | . . . . . . . . 8 Ignored by Resistances 3891 | . 79 155 . 1196 238 . 277 1946 Core Remaining (%) 52 | 100 . . 2 4 77 . 81 . Volleys Fired 287 | . 49 32 . 75 17 2 28 84 Largest 3 | . 2 2 . 3 2 2 2 2 Hottest 175 | . 95 93 . 168 90 125 125 175 Shots Fired 579 | . 96 64 . 173 31 4 56 155 Gun 478 | . 77 . . 173 20 4 56 148 Cannon 101 | . 19 64 . . 11 . . 7 Launcher . | . . . . . . . . . Special . | . . . . . . . . . Kinetic 311 | . 49 32 . 78 26 . 40 86 Thermal 169 | . 44 32 . 70 . . . 23 Explosive . | . . . . . . . . . Electromagnetic 99 | . 3 . . 25 5 4 16 46 Robot Hit Streak 26 | . 9 23 . 26 15 8 12 20 Robot Miss Streak 5 | . 5 1 . 2 2 2 2 2 Penetration Max 1 | . . . . 1 . . 1 1 Secondary Targets 11 | . . . . 7 . . 3 1 Max Gunslinging Chain 1 | . . . . 1 . . 1 1 Shots Hit Robots 497 | . 51 49 . 160 36 2 81 118 Core Hits 185 | . 19 13 . 87 8 1 22 35 Critical Kills 5 | . 1 1 . 1 . . . 2 Critical Parts Destroyed 9 | . 1 . . 2 3 . . 3 Critical Strikes 23 | . 2 2 . 6 5 . 1 7 Burn 3 | . . . . 3 . . . . Meltdown 1 | . . 1 . . . . . . Destroy 11 | . 2 . . 3 1 . . 5 Blast 3 | . . 1 . . 2 . . . Corrupt 3 | . . . . . . . 1 2 Smash 2 | . . . . . 2 . . . Melee Attacks 64 | . . . . 11 16 . 35 2 Impact 27 | . . . . 11 16 . . . Slashing 10 | . . . . . . . 8 2 Piercing . | . . . . . . . . . Sneak Attacks 30 | . . . . . 1 . 28 1 Combat Hostiles 2 | . . . . . . . 2 . Follow-up Attacks 1 | . . . . . . . 1 . Damage Inflicted 10357 | . 808 837 . 2919 1110 60 1582 3041 Guns 7591 | . 643 . . 2673 382 60 1175 2658 Cannons 1421 | . 165 837 . . 210 . . 209 Explosions 94 | . . . . 94 . . . . Melee 1188 | . . . . 148 518 . 407 115 Ramming 63 | . . . . 4 . . . 59 Kinetic 4914 | . 334 421 . 959 568 . 838 1794 Thermal 2619 | . 474 416 . 1300 . . . 429 Explosive . | . . . . . . . . . Electromagnetic 1573 | . . . . 508 24 60 337 644 Impact 666 | . . . . 148 518 . . . Slashing 522 | . . . . . . . 407 115 Piercing . | . . . . . . . . . Highest Corruption 16 | . . . . 5 12 . 1 16 Average Corruption 4 | . . . . 4 6 . 1 6 Corruption Purged . | . . . . . . . . . Corruption Blocked . | . . . . . . . . . Effects 72 | . . . . 24 13 . 7 28 Message Errors 17 | . . . . 5 3 . 2 7 Matter Fused 18 | . . . . 5 5 . 2 6 Heat Flow Errors 5 | . . . . 2 . . . 3 Energy Discharges 6 | . . . . 3 1 . . 2 Parts Rejected 1 | . . . . 1 . . . . Data Loss (minor) 11 | . . . . 3 1 . 3 4 Data Loss (major) 3 | . . . . 1 1 . . 1 Misfires 2 | . . . . . 1 . . 1 Alerts 2 | . . . . 1 1 . . . Weapon Failures 7 | . . . . 3 . . . 4 Overload Shots . | . . . . . . . . . Overflow Damage 247 | . . . . . 200 . . 47 Projectiles 24 | . . . . . 17 . . 7 Explosions . | . . . . . . . . . Melee 223 | . . . . . 183 . . 40 Knockbacks 9 | . 2 5 . 1 1 . . . Impact 2 | . . . . 1 1 . . . Kinetic 7 | . 2 5 . . . . . . Secondary . | . . . . . . . . . Self-Inflicted Damage 70 | . . . . 42 . . . 28 Shots 1 | . . . . 1 . . . . Rammed 4 | . . . . 1 . . . 3 Targets Rammed 4 | . . . . 1 . . . 3 Kicked . | . . . . . . . . . Crushed . | . . . . . . . . . Highest Temperature 526 | . 215 . . 209 . . . 526 Average Temperature 76 | . 64 . . 45 . . . 102 Received Heat Transfer 991 | . 111 129 . 535 12 . 147 57 Effects 7 | . . . . . . . . 7 Shutdowns 2 | . . . . . . . . 2 Energy Bleed 1 | . . . . . . . . 1 Interference 3 | . . . . . . . . 3 Short Circuit 1 | . . . . . . . . 1 Siege Activations 1 | . . . . . . . . 1 Total Turns 19 | . . . . . . . . 19 Longest Duration 19 | . . . . . . . . 19 Martial Activations . | . . . . . . . . . Shielding Activations . | . . . . . . . . . Robots Disrupted 1 | . . . . 1 . . . . Combat Hostiles 1 | . . . . 1 . . . . Robots Corrupted 3 | . . . . . 1 . 1 1 Combat Hostiles 2 | . . . . . . . 1 1 Parts Fried 23 | . . . . 4 5 . 6 8 Impact Corruptions 7 | . . . . . 6 . . 1 Robots Melted 1 | . . 1 . . . . . . Combat Hostiles 1 | . . 1 . . . . . . Parts Melted 5 | . 3 1 . 1 . . . . Heat Transferred 5218 | . 1110 888 . 2665 . . . 555 Parts Sabotaged . | . . . . . . . . . Parts Stolen . | . . . . . . . . . Parts Stripped . | . . . . . . . . . Power Chain Reactions 1 | . . . . 1 . . . . Alert | -11 -10 -10 -8 -6 -5 -4 -4 -3 ------- Run | Yrd Mat Sub Scr Fac Fac Fac Ext Res Maximum Alert Level 1 | . . . . 1 . . . . Low Security (%) 85 | 100 100 . . 31 100 100 100 100 Level 1 14 | . . . . 68 . . . . Level 2 . | . . . . . . . . . Level 3 . | . . . . . . . . . Level 4 . | . . . . . . . . . Level 5 . | . . . . . . . . . High Security . | . . . . . . . . . Max Security . | . . . . . . . . . Peak Influence 299 | . 126 . . 299 45 32 90 59 Initial 22 | . . . . . . . 13 22 Average 57 | . 46 . . 193 4 6 27 9 Influence Increases 2060 | . 289 . . 766 116 66 441 382 Destroy 0b10 Robot/C 1080 | . 180 . . 360 80 . 300 160 Destroy 0b10 Robot/NC 135 | . 35 . . 35 10 5 25 25 Destroy Leader 218 | . 36 . . 104 20 . 14 44 Allied During Kill 30 | . . . . . . . 30 . Successful Hack 66 | . 3 . . 22 . 16 23 2 Disable Machine 54 | . 18 . . 9 . . . 27 Anti-Garrison Action 150 | . . . . 150 . . . . Destroy Structure 27 | . 2 . . 11 6 . 4 4 Partial Spotted 105 | . . . . 30 . 45 30 . Lose Combat Pursuer 195 | . 15 . . 45 . . 15 120 Influence Decreases 2060 | . 289 . . 766 116 34 423 432 Entered New Map 47 | . . . . . . . 19 28 Time Decay 1458 | . 279 . . 480 106 34 287 272 Lost Part 428 | . . . . 276 10 . 10 132 Lost Ally 117 | . . . . 10 . . 107 . Purge Threat 10 | . 10 . . . . . . . Squads Dispatched 17 | . . . . 7 3 . . 7 Investigation . | . . . . . . . . . Extermination 7 | . . . . 1 3 . . 3 Reinforcement 7 | . . . . 4 . . . 3 Assault 1 | . . . . 1 . . . . Garrison 2 | . . . . 1 . . . 1 Intercept . | . . . . . . . . . Searches Triggered . | . . . . . . . . . Construction Impeded . | . . . . . . . . . Haulers Reinforced 2 | . . . . . . . . 2 Active Scanning Responses . | . . . . . . . . . Cargo Convoy Interrupts . | . . . . . . . . . Stealth | -11 -10 -10 -8 -6 -5 -4 -4 -3 --------- Run | Yrd Mat Sub Scr Fac Fac Fac Ext Res Distress Signals 3 | . . . . . . . 2 1 Communications Jammed 28 | . . . . . . . 9 19 Distress Signals 28 | . . . . . . . 9 19 Times Spotted 131 | . 16 8 . 27 4 2 30 44 Peak Tracking Total 21 | . 4 2 . 5 2 1 5 21 Tactical Retreats 10 | . 1 1 . 2 . . 1 5 Traps | -11 -10 -10 -8 -6 -5 -4 -4 -3 ------- Run | Yrd Mat Sub Scr Fac Fac Fac Ext Res Traps Triggered 4 | . 1 . . 2 . . 1 . Indirectly . | . . . . . . . . . Trap Hack Attempts . | . . . . . . . . . Triggered . | . . . . . . . . . Disarmed . | . . . . . . . . . Reprogrammed . | . . . . . . . . . Reused . | . . . . . . . . . Traps Extracted . | . . . . . . . . . Installed . | . . . . . . . . . Triggered . | . . . . . . . . . Machines | -11 -10 -10 -8 -6 -5 -4 -4 -3 ---------- Run | Yrd Mat Sub Scr Fac Fac Fac Ext Res Machines Disabled 9 | . 2 . . 2 . . 2 3 Max in Single Turn 1 | . 1 . . 1 . . 1 1 Garrison Access 1 | . . . . 1 . . . . Machines Repaired . | . . . . . . . . . Machines Dismantled . | . . . . . . . . . Machines Sabotaged . | . . . . . . . . . Overloaded Fab Kills . | . . . . . . . . . Hacking | -11 -10 -10 -8 -6 -5 -4 -4 -3 --------- Run | Yrd Mat Sub Scr Fac Fac Fac Ext Res Machines Accessed 30 | . 7 2 6 2 2 3 7 1 Terminals 19 | . 6 . . 1 2 2 7 1 Fabricators 1 | . . . . 1 . . . . Repair Stations 2 | . 1 . . . . 1 . . Recycling Units . | . . . . . . . . . Scanalyzers . | . . . . . . . . . Garrison Access . | . . . . . . . . . Total Hacks 95 | . 22 2 37 5 3 9 14 3 Successful 67 | . 11 2 37 3 . 4 8 2 Failed 28 | . 11 . . 2 3 5 6 1 Catastrophic 2 | . 1 . . . 1 . . . Database Lockouts . | . . . . . . . . . Manual 37 | . 17 . . 3 3 4 7 3 Terminals 48 | . 20 . . 3 3 5 14 3 Fabricators 2 | . . . . 2 . . . . Repair Stations 6 | . 2 . . . . 4 . . Recycling Units . | . . . . . . . . . Scanalyzers . | . . . . . . . . . Garrison Access . | . . . . . . . . . Terminal Hacks 49 | . 5 2 37 . . 1 4 . Record 33 | . . 1 31 . . . 1 . Robot Analysis 8 | . 1 . 6 . . . 1 . Prototype ID Bank 2 | . 2 . . . . . . . Open Door 4 | . . 1 . . . 1 2 . Terminal Index 1 | . 1 . . . . . . . Unreport Threat 1 | . 1 . . . . . . . Fabricator Hacks 2 | . . . . 2 . . . . Network Status 1 | . . . . 1 . . . . Build 1 | . . . . 1 . . . . Repair Station Hacks 1 | . . . . . . 1 . . Scan Component 1 | . . . . . . 1 . . Recycling Unit Hacks . | . . . . . . . . . Scanalyzer . | . . . . . . . . . Garrison Access Hacks . | . . . . . . . . . Unauthorized Hacks 15 | . 6 . . 1 . 2 4 2 Terminals 15 | . 6 . . 1 . 2 4 2 Botnet 13 | . 6 . . 1 . 1 4 1 Operators 2 | . . . . . . 1 . 1 Fabricators . | . . . . . . . . . Repair Stations . | . . . . . . . . . Recycling Units . | . . . . . . . . . Scanalyzers . | . . . . . . . . . Garrison Access . | . . . . . . . . . Data Cores Recovered 2 | . . . . . . 1 1 . Used 1 | . . . . . . 1 . . Hacking Detections 20 | . 7 . . 2 2 2 6 1 Full Trace Events . | . . . . . . . . . Feedback Events . | . . . . . . . . . Feedback Blocked . | . . . . . . . . . Robot Schematics Acquired . | . . . . . . . . . Robots Built 1 | . . . . 1 . . . . Authchips . | . . . . . . . . . Time 76 | . . . . 76 . . . . Total Robot Build Rating 5 | . . . . 5 . . . . Part Schematics Acquired . | . . . . . . . . . Parts Built . | . . . . . . . . . Authchips . | . . . . . . . . . Time . | . . . . . . . . . Total Part Build Rating . | . . . . . . . . . Parts Repaired . | . . . . . . . . . Time . | . . . . . . . . . Parts Recycled . | . . . . . . . . . Recycled Matter . | . . . . . . . . . Retrieved Matter . | . . . . . . . . . Retrieved Components . | . . . . . . . . . Parts Scanalyzed . | . . . . . . . . . Part Schematics Acquired . | . . . . . . . . . Parts Damaged . | . . . . . . . . . Bothacking | -11 -10 -10 -8 -6 -5 -4 -4 -3 ------------ Run | Yrd Mat Sub Scr Fac Fac Fac Ext Res Used RIF Installer . | . . . . . . . . . Robots Hacked . | . . . . . . . . . Non-combat . | . . . . . . . . . Combat . | . . . . . . . . . Robot Hacks Applied . | . . . . . . . . . Relay Couplers Released 3 | . . . . 3 . . . . Machine Destruction 3 | . . . . 3 . . . . Fabnet Peak Effective % . | . . . . . . . . . Robots Rewired 9 | . . . . . . . 9 . Allies Hacked . | . . . . . . . . . Hacks Repelled . | . . . . . . . . . Allies | -11 -10 -10 -8 -6 -5 -4 -4 -3 -------- Run | Yrd Mat Sub Scr Fac Fac Fac Ext Res Total Allies 13 | . . . . 1 . . 12 . Largest Group 11 | . . . . 1 . . 11 . Highest-Rated Group 519 | . . . . 23 . . 519 . Highest-Rated Ally 159 | . . . . 23 . . 159 . Total Orders . | . . . . . . . . . Ally Attacks 72 | . . . . . . . 72 . Total Damage 2549 | . . . . . . . 2549 . Kills 9 | . . . . . . . 9 . Allies Corrupted . | . . . . . . . . . Allies Melted 3 | . . . . . . . 3 . Intel | -11 -10 -10 -8 -6 -5 -4 -4 -3 ------- Run | Yrd Mat Sub Scr Fac Fac Fac Ext Res Active Infowar (turns) 2394 | . . . . 20 531 139 807 897 Sensors 113 | . . . . . 100 . . 13 Traps 138 | . . . . 20 . . 118 . Jamming 2338 | . . . . . 501 139 807 891 Robot Analysis Total 8 | . 1 . 6 . . . 1 . Derelict Logs Recovered . | . . . . . . . . . Drone Launches . | . . . . . . . . . Drone Recoveries . | . . . . . . . . . Exploration | -11 -10 -10 -8 -6 -5 -4 -4 -3 ------------- Run | Yrd Mat Sub Scr Fac Fac Fac Ext Res Turns Passed 9018 | 53 821 962 3081 1085 994 139 807 1076 Spaces Moved 5325 | 43 670 491 1742 453 359 322 713 532 Core 10 | 5 . . . 2 . . . 3 Treads 2739 | . . 421 1742 125 141 . 131 179 Legs 427 | . . 42 . 325 . . . 60 Wheels 1289 | 38 670 28 . 1 47 . 215 290 Hover 101 | . . . . . 101 . . . Flight 759 | . . . . . 70 322 367 . Fastest Speed 28 | 50 95 95 160 120 28 28 28 50 Average Speed 139 | 95 96 158 174 160 229 28 82 133 Slowest Speed 550 | 100 100 190 240 550 490 108 170 196 Overloaded Moves . | . . . . . . . . . Propulsion Burnouts . | . . . . . . . . . Robots Hopped 2 | . . . . . . . 2 . Potential Cave-ins 1 | . . . . . . . . 1 Cave-ins Triggered . | . . . . . . . . . Exploration Rate (%) 35 | 4 82 31 91 18 8 9 63 13 Regions Visited 8 Branch Regions 3 Pre-discovered Areas 3 | . . . 3 . . . . . Known Exits Taken . | . . . . . . . . . Unknown Exits Taken 8 | 1 1 1 1 1 1 1 1 . Scrap Searched 5 | . . 2 3 . . . . . Spaces Dug 11 | . . . . 8 2 . . 1 Terrain Destroyed 31 | . . . . 11 3 . 13 4 Melee 11 | . . . . 8 2 . . 1 Projectile 16 | . . . . . 1 . 13 2 AOE 2 | . . . . 2 . . . . Terrain Rammed . | . . . . . . . . . Walls Destroyed . | . . . . . . . . . Machines Disabled . | . . . . . . . . . Actions | -11 -10 -10 -8 -6 -5 -4 -4 -3 --------- Run | Yrd Mat Sub Scr Fac Fac Fac Ext Res Total 6298 | 53 748 609 1803 639 468 364 877 737 Wait 203 | . 6 83 5 17 11 29 33 19 Move 5313 | 42 669 490 1741 452 358 321 708 532 Hop 2 | . . . . . . . 2 . Pick Up 115 | 5 7 1 23 15 19 2 7 36 Fast Attach 42 | 4 1 . 1 7 12 4 6 7 Attach 70 | 2 . 3 . 22 13 . 1 29 Detach 1 | . . . . . 1 . . . Swap 87 | . 9 . 10 24 6 2 24 12 Drop 93 | . 7 . 23 15 15 4 16 13 Fire 287 | . 49 32 . 75 17 2 28 84 Melee 63 | . . . . 11 16 . 34 2 Ram 2 | . . . . . . . . 2 Kick . | . . . . . . . . . Crush 2 | . . . . 1 . . . 1 Escape Stasis 18 | . . . . . . . 18 . Rewire . | . . . . . . . . . Trap . | . . . . . . . . . Miscellaneous . | . . . . . . . . . Route ------- -11/Scrapyard -10/Materials (discovered 3 exits: [*Mat x2] / *Sub) -10/Subcaves (discovered 2 exits: [*Mat] / *Scr) -8/Scraptown (discovered 2 exits: *Fac x2) -6/Factory -5/Factory -4/Factory (discovered 2 exits: *Res / *Ext) -4/Extension (discovered 2 exits: *Res / [*Cet]) -3/Research History --------- Turn | Location | Event 20 | -11/Scrapyard | Discovered new exit (range 15) 54 | -11/Scrapyard | Entered Materials 301 | -10/Materials | Build established: Mutant 503 | -10/Materials | Discovered new exit (range 10) 829 | -10/Materials | Discovered new exit (range 14) 869 | -10/Materials | Discovered new exit (range 7) 875 | -10/Materials | Entered Subcaves 876 | -10/Subcaves | Approached by a straggling Scientist 938 | -10/Subcaves | Discovered new exit (range 14) 970 | -10/Subcaves | Ambushed by Subdwellers from Twisted Machinery 990 | -10/Subcaves | Core integrity fell below 50% 1105 | -10/Subcaves | Core integrity fell below 20% 1813 | -10/Subcaves | Scientist uncovered a shortcut to Scraptown 1837 | -10/Subcaves | Entered Scraptown 2384 | -8/Scraptown | Visited TADAMA 2413 | -8/Scraptown | Visited Red Mages 2702 | -8/Scraptown | Visited UFD Registry 2702 | -8/Scraptown | Registered with UFD as "Pulsecycle" 2713 | -8/Scraptown | Visited Cave Peace 2805 | -8/Scraptown | Visited SPCMW 2849 | -8/Scraptown | Visited Supply Room 2968 | -8/Scraptown | Discovered new exit (range 11) 3314 | -8/Scraptown | Visited Awakened 3367 | -8/Scraptown | Visited Cyclists 3403 | -8/Scraptown | Entered Cyclist Reading Room 3410 | -8/Scraptown | Learned location of Zion (-6) 3523 | -8/Scraptown | Visited Derelict Rescue Squad 3546 | -8/Scraptown | Found DRS Beacon 3578 | -8/Scraptown | Visited Analyses Database 3626 | -8/Scraptown | Visited Scrapoid Pod Storage 3658 | -8/Scraptown | Visited LU-1G1's Boring Crew 4167 | -8/Scraptown | Visited Scrap Suit Storage 4256 | -8/Scraptown | Visited Abandonware Association 4280 | -8/Scraptown | Learned abandonware demo "OVRCLOCK.EXE" 4301 | -8/Scraptown | Learned abandonware demo "KABOOM.EXE" 4301 | -8/Scraptown | Learned abandonware demo "MELTYB.EXE" 4342 | -8/Scraptown | Visited DA-N13 Charitable Foundation 4352 | -8/Scraptown | Found DCF Scrap (33 items) 4506 | -8/Scraptown | Visited Science Testing Area 4554 | -8/Scraptown | Visited Supply Room 4618 | -8/Scraptown | Visited Cartography Club 4910 | -8/Scraptown | Discovered new exit (range 3) 4918 | -8/Scraptown | Entered Factory 4918 | -6/Factory | Evolved 8 slots: Power x1, Propulsion x2, Utility x4, Weapon x1 5040 | -6/Factory | Garrison activated, responded to threat 5249 | -6/Factory | Lost 6 parts (2n2u2w) 5510 | -6/Factory | Fabricated A-15 Conveyor? 5849 | -6/Factory | Build established: Hacker-Mutant 5917 | -6/Factory | Discovered new exit (range 7) 5967 | -6/Factory | Core integrity fell below 50% 5990 | -6/Factory | Core integrity fell below 20% 6003 | -6/Factory | Entered another Factory area 6003 | -5/Factory | Evolved 2 slots: Propulsion x1, Utility x1 6029 | -5/Factory | Lost 21 parts (5p6n7u3w) 6281 | -5/Factory | Build established: Mutant 6810 | -5/Factory | System corruption reached 10% 6834 | -5/Factory | Lost 4 parts (2p1n1w) 6995 | -5/Factory | Discovered new exit (range 8) 6997 | -5/Factory | Entered another Factory area 6997 | -4/Factory | Evolved 2 slots: Utility x2 7133 | -4/Factory | Discovered new exit (range 16) 7135 | -4/Factory | Discovered new exit (range 6) 7136 | -4/Factory | Entered Extension 7257 | -4/Extension | Rescued a captive Derelict 7258 | -4/Extension | Rescued a captive Derelict 7284 | -4/Extension | Rescued A7 7518 | -4/Extension | Spotted B-86 Titan 7524 | -4/Extension | Spotted B-86 Titan 7556 | -4/Extension | Allies destroyed B-86 Titan 7556 | -4/Extension | Extracted ID and sensor layout for unrecognized location from A7's data core 7573 | -4/Extension | Lost 8 parts (1p3n2u2w) 7581 | -4/Extension | Found Hvy. Reflective Plating 7612 | -4/Extension | Allies destroyed B-86 Titan 7614 | -4/Extension | Lost 7 allies 7836 | -4/Extension | Disrupted transfer network 7852 | -4/Extension | Build established: Scavenger-Mutant 7919 | -4/Extension | Discovered new exit (range 16) 7922 | -4/Extension | Discovered new exit (range 14) 7942 | -4/Extension | Disrupted transfer network 7943 | -4/Extension | Entered Research 7943 | -3/Research | Evolved 2 slots: Power x1, Propulsion x1 8855 | -3/Research | Lost 8 parts (1p4u3w) 8872 | -3/Research | System corruption reached 10% 8888 | -3/Research | Garrison activated, responded to threat 8955 | -3/Research | Lost 4 parts (2p2u) 9009 | -3/Research | Core integrity fell below 50% 9017 | -3/Research | Core integrity fell below 20% 9017 | -3/Research | Released all parts (7) 9019 | -3/Research | Destroyed by H-77 Assassin with Coil Gun Last Messages --------------- 09017_ Released Armor Integrity Analyzer. 09017_ Released Graphene Brace. 09017_ Released Imp. Salvage Targeting Computer. 09017_ Released Adv. Signal Interpreter. 09017_ Released Imp. Melee Analysis Suite. 09017_ Released Adv. Target Analyzer. 09018_ Slug penetrates Wall. 09018_ Acquired Lgt. Antimatter Reactor. 09018_ Slug penetrates H-77 Assassin. 09018_ Slug penetrates Wall. 09018_ Slug penetrates H-77 Assassin. 09018_ Penetrated by Slug. 09018_ Slug penetrates Wall. 09019_ H-77 Assassin IFF system glitched. 09019_ Slug penetrates H-77 Assassin. 09019_ H-77 Assassin suffers critical hit (Destroy). 09019_ P-80 Master resets H-77 Assassin, system corruption cleaned. 09019_ Penetrated by Slug. Map ----- +----------------------------------------------------+ | # T?# #?????????????????????????????????????????? | | # ?# #????################?????????????????????? | | # #?# #????# #?????????????????????? | | # #?# #????# #?????????????????????? | | # #?# ###### #?????????????????????? | | # #?# " #?????????????????????? | | ??######## #?????????????????????? | | ?????????# #?????????????????????? | | ?????????#########+######?????????????????????? | | ?#############?# #?????????????????????????? | | ?# # #?????????????????????????? | | ?# # #?????????????????????????? | | ?# " #?????????????????????????? | | ????# # #?????????????????????????? | | ????# # #?????????????????????????? | | ????# = ?# #?????????????????????????? | | ????#############?# #?????????????????????????? | | ??????????????????# #?????????????????????????? | | ??????????????????# #?????????????????????????? | | ??????????????????# #?????????????????????????? | | ??????????????????# #?????????????????????????? | | ??????????????????# #?????????????????????????? | | ??????????????????# ##########+###### ????????? | | ??????????????????# s ???????? | | ??????????????????# ???????? | | ??????????????????# @ ??????? | | ??????????????????# mh hk Y ???????? | | ??????????????????# ##!h;%;;########??????????? | | ??????????????????# #hhRhhp #???????????????? | | ??????????????????# # pshph #???????????????? | | ????????????????? # s #???????????????? | | ??????????????? # s #???????????????? | | ?????????????? # !! #???????????????? | | ????????????? # !! #???????????????? | | ?????????????########### #???????????????? | | ???????????????????????# t #???????????????? | | ???????????????????????###########???????????????? | | ?????????????????????????????????????????????????? | | ?????????????????????????????????????????????????? | | ?????????????????????????????????????????????????? | | ?????????????????????????????????????????????????? | | ?????????????????????????????????????????????????? | | ?????????????????????????????????????????????????? | | ?????????????????????????????????????????????????? | | ?????????????????????????????????????????????????? | | ?????????????????????????????????????????????????? | | ?????????????????????????????????????????????????? | | ?????????????????????????????????????????????????? | | ?????????????????????????????????????????????????? | | ?????????????????????????????????????????????????? | +----------------------------------------------------+ Best States ------------- Heat Dissipation 114 Energy Generation 75 Energy Capacity 485 Matter Stores 300 Matter Capacity 300 Sight Range 16 Robot Scan Range 16 Terrain Scan Density 10 Jamming Range 14 Power Amplification 60 Additional Mass Support 9 Armor Coverage 1200 Resistance: KI 20 Resistance: TH 45 Resistance: EX 70 Resistance: EM 20 Resistance: I 20 Resistance: S 20 Resistance: P 20 Phase Shifting 10 Evasion (%) 64 Targeting Accuracy 8 Target Analysis 8 Armor Integrity Analysis 30 Recoil Reduction 5 Energy Filtering 30 Kinecelleration 40 Salvage Targeting 6 Offensive Hacking 22 Defensive Hacking 10 Item Schematics ----------------- None Robot Schematics ------------------ None Fabricated ------------ A-15 Conveyor | x1 | -6/Factory | Preloaded Repaired ---------- Nothing Alien Tech Used ----------------- None Achievements -------------- More Power To You Challenges ------------ None Game ------ Seed VampiricSubdwellerWell Manual? 0 Play Time 01:15:03 Cumulative 257.2 hours Start 2025.07.24 @ 09:54:01 End 2025.07.24 @ 11:31:06 Sessions 1 Manual Loads 0 Difficulty Adventurer Special Mode None Game No. 297 Rogue 0 Adventurer 297 Explorer 0 Win Type - Total 0 Types 0/0/0/0/0/0/0/0/0/0 Lore% 73 Gallery% 60 Achievement% 50 Wizard Run 0 Options --------- Layout 2 ASCII 0 Keyboard 0 Movement Mouse Keybinds 0 Fullscreen 2 Font 48/Smallcaps Map View 50x44 Zoom Use 0% Tactical HUD 1 Map Filters NONE Filters NONE Steam 1 RUN: 3e0dd7de-664b-474f-b40f-f7f9571fb8f8